Cogmind - Beta 16 @@@ ROGUE MODE // 2025.11.08 @ 18:19:50 Player: FrigidRock Result: Destroyed self via exploding Nuclear Reactor Performance ------------- Evolutions (0) 0 Regions Visited (1) 200 Robots Destroyed (11) 55 Value Destroyed (314) 314 Prototype IDs (0) 0 Alien Tech Used (0) 0 Bonus (0) 0 TOTAL SCORE: 569 Bonus ------- None Cogmind --------- Core Integrity 0/250 Matter 300/300 Energy 244/250 System Corruption 1% Temperature Cool (32) Movement Core (500) Ox9 Location -10/Materials Parts ------- > --- POWER (1) -------- Ion Engine > --- PROPULSION (2) --- (None) > --- UTILITY (2) ------ Large Storage Unit Improved Terrain Scanner > --- WEAPON (2) ------- EM Pulse Gun Light Assault Rifle > --- INVENTORY (15) --- Ion Engine Ion Engine Aluminum Leg Aluminum Leg Improved Heat Sink Small Storage Unit Medium Storage Unit Peak State ------------ > --- POWER ------------ Ion Engine > --- PROPULSION ------- Light Treads Light Treads > --- UTILITY ---------- Small Storage Unit Improved Terrain Scanner > --- WEAPON ----------- Assault Rifle Light Assault Rifle > --- INVENTORY -------- Ion Engine EM Pulse Gun [Rating: 9] Favorites ----------- Power Ion Engine Engine Ion Engine Propulsion Light Treads Treads Light Treads Utility Improved Terrain Scanner Device Improved Terrain Scanner Storage Small Storage Unit Weapon Light Assault Rifle Energy Gun EM Pulse Gun Ballistic Gun Light Assault Rifle Build | -11 -10 ------- Run | Yrd Mat Slots Evolved . | . . Power . | . . Propulsion . | . . Utility . | . . Weapon . | . . Parts Attached 10 | 8 2 Power 1 | 1 . Engine 1 | 1 . Core . | . . Reactor . | . . Propulsion 2 | 2 . Treads 2 | 2 . Leg . | . . Wheel . | . . Hover . | . . Flight . | . . Utility 4 | 3 1 Device 2 | 2 . Storage 2 | 1 1 Processor . | . . Hackware . | . . Protection . | . . Artifact . | . . Weapon 3 | 2 1 Energy Gun 1 | . 1 Energy Cannon . | . . Ballistic Gun 2 | 2 . Ballistic Cannon . | . . Launcher . | . . Special Weapon . | . . Impact Weapon . | . . Slashing Weapon . | . . Piercing Weapon . | . . Special Melee Weapon . | . . Unidentified Prototypes . | . . Parts Lost 3 | . 3 Power . | . . Propulsion 2 | . 2 Utility . | . . Weapon 1 | . 1 Highest Loss Streak 2 | . 2 To Critical Strikes . | . . Average Backups 2 | 1 3 Power 1 | . 1 Propulsion . | . . Utility . | . . Weapon . | . . Tool/Special . | . . Unused Backups 4 | . 4 Power 2 | . 2 Propulsion . | . . Utility 2 | . 2 Weapon . | . . Tool/Special . | . . Average Slot Usage (%) 96 | . 96 Engine 14 | . 14 Treads 25 | . 25 Device 14 | . 14 Storage 14 | . 14 Ballistic Gun 27 | . 27 Peak Build Rating 9 | 9 9 Average Rating 8 | 5 8 On Entrance 4 | . 9 Avg Prop Armor Cover (%) . | . . Naked Turns . | . . Heaviest Build 29 | 14 29 Greatest Support 40 | 40 40 Greatest Overweight (x) 1 | . 1 Average Overweight (x) . | . . Largest Inventory Capacity 15 | 8 15 Average Capacity 9 | 7 10 Most Carried 8 | 2 8 Average Carried 2 | 1 3 Final Capacity 15 | 8 15 Final Carried 7 | 2 7 Class Distribution -------------------- 100% | Mutant Dominant Class ---------------- Mutant | -10/Materials Resources | -11 -10 ----------- Run | Yrd Mat Matter Collected 412 | 300 112 Remotely 10 | 10 . Salvage Created 406 | 109 297 Parts 28 | 5 23 Haulers Intercepted . | . . Recyclers Shooed . | . . Parts Field Recycled . | . . Retrieved Matter . | . . Parts Self-Destructed . | . . Prevented . | . . Parts Restored . | . . Kills | -11 -10 ------- Run | Yrd Mat Combat Hostiles Destroyed 9 | . 9 Guns 7 | . 7 AOE 2 | . 2 Classes Destroyed 4 | 2 2 Tunneler 1 | 1 . Recycler 1 | 1 . Swarmer 2 | . 2 Grunt 7 | . 7 Best Kill Streak 3 | 2 3 Combat Bots Only 3 | . 3 Max Kills in Single Turn 2 | 1 2 Gunslinging . | . . Exploded 2 | . 2 Melee . | . . Uniques/NPCs Destroyed . | . . Combat | -11 -10 -------- Run | Yrd Mat Hostile Shots Fired 70 | . 70 Missed 17 | . 17 Hits 53 | . 53 Projectile 53 | . 53 Damage Taken 792 | . 792 Core 295 | . 295 Absorbed by Shields . | . . Core Remaining (%) 100 | 100 . Volleys Fired 31 | 5 26 Largest 2 | 2 2 Hottest 60 | 40 60 Shots Fired 62 | 10 52 Gun 62 | 10 52 Cannon . | . . Launcher . | . . Special . | . . Kinetic 60 | 10 50 Thermal . | . . Explosive . | . . Electromagnetic 2 | . 2 Robot Hit Streak 14 | 9 14 Robot Miss Streak 2 | . 2 Penetration Max . | . . Secondary Targets . | . . Shots Hit Robots 43 | 9 34 Core Hits 19 | 3 16 Critical Kills . | . . Critical Parts Destroyed . | . . Critical Strikes . | . . Melee Attacks . | . . Impact . | . . Slashing . | . . Piercing . | . . Sneak Attacks . | . . Combat Hostiles . | . . Follow-up Attacks . | . . Damage Inflicted 899 | 90 809 Guns 455 | 90 365 Cannons . | . . Explosions 444 | . 444 Melee . | . . Ramming . | . . Kinetic 430 | 90 340 Thermal 98 | . 98 Explosive 346 | . 346 Electromagnetic 25 | . 25 Impact . | . . Slashing . | . . Piercing . | . . Highest Corruption 1 | . 1 Average Corruption 1 | . 1 Corruption Purged . | . . Corruption Blocked . | . . Effects 1 | . 1 Message Errors 1 | . 1 Overload Shots . | . . Overflow Damage 125 | . 125 Projectiles . | . . Explosions 125 | . 125 Melee . | . . Knockbacks . | . . Impact . | . . Kinetic . | . . Secondary . | . . Self-Inflicted Damage 235 | . 235 Shots 3 | . 3 Rammed . | . . Targets Rammed . | . . Kicked . | . . Crushed . | . . Highest Temperature 52 | . 52 Average Temperature 11 | . 11 Received Heat Transfer 204 | . 204 Siege Activations . | . . Martial Activations . | . . Shielding Activations . | . . Robots Disrupted . | . . Combat Hostiles . | . . Robots Corrupted . | . . Combat Hostiles . | . . Parts Fried . | . . Impact Corruptions . | . . Robots Melted . | . . Combat Hostiles . | . . Parts Melted . | . . Heat Transferred 200 | . 200 Parts Sabotaged . | . . Parts Stolen . | . . Parts Stripped . | . . Power Chain Reactions 1 | . 1 Alert | -11 -10 ------- Run | Yrd Mat Maximum Alert Level . | . . Low Security (%) 100 | 100 100 Level 1 . | . . Level 2 . | . . Level 3 . | . . Level 4 . | . . Level 5 . | . . High Security . | . . Max Security . | . . Peak Influence 94 | 5 94 Initial . | . . Average 35 | . 45 Influence Increases 363 | 10 353 Destroy 0b10 Robot/C 180 | . 180 Destroy 0b10 Robot/NC 10 | 10 . Destroy Leader 20 | . 20 Successful Hack 17 | . 17 Select Force Hacks 30 | . 30 Disable Machine 45 | . 45 Destroy Structure 16 | . 16 Lose Combat Pursuer 45 | . 45 Influence Decreases 234 | 10 224 Time Decay 204 | 10 194 Lost Part 30 | . 30 Squads Dispatched 2 | . 2 Investigation 2 | . 2 Extermination . | . . Reinforcement . | . . Assault . | . . Garrison . | . . Intercept . | . . Searches Triggered . | . . Construction Impeded . | . . Haulers Reinforced . | . . Active Scanning Responses . | . . Cargo Convoy Interrupts . | . . Stealth | -11 -10 --------- Run | Yrd Mat Distress Signals 5 | . 5 Communications Jammed . | . . Distress Signals . | . . Times Spotted 17 | . 17 Peak Tracking Total 6 | . 6 Tactical Retreats 3 | . 3 Traps | -11 -10 ------- Run | Yrd Mat Traps Triggered . | . . Indirectly . | . . Trap Hack Attempts . | . . Triggered . | . . Disarmed . | . . Reprogrammed . | . . Reused . | . . Traps Extracted . | . . Installed . | . . Triggered . | . . Machines | -11 -10 ---------- Run | Yrd Mat Machines Disabled 3 | . 3 Max in Single Turn 3 | . 3 Machines Repaired . | . . Machines Dismantled . | . . Machines Sabotaged . | . . Overloaded Fab Kills . | . . Hacking | -11 -10 --------- Run | Yrd Mat Machines Accessed 6 | . 6 Terminals 4 | . 4 Fabricators . | . . Repair Stations . | . . Recycling Units 2 | . 2 Scanalyzers . | . . Garrison Access . | . . Total Hacks 12 | . 12 Successful 5 | . 5 Failed 7 | . 7 Catastrophic 2 | . 2 Database Lockouts . | . . Manual 12 | . 12 Terminals 9 | . 9 Fabricators . | . . Repair Stations . | . . Recycling Units 3 | . 3 Scanalyzers . | . . Garrison Access . | . . Terminal Hacks 2 | . 2 Part Schematic 2 | . 2 Fabricator Hacks . | . . Repair Station Hacks . | . . Recycling Unit Hacks . | . . Scanalyzer . | . . Garrison Access Hacks . | . . Unauthorized Hacks 3 | . 3 Terminals 2 | . 2 Botnet 1 | . 1 Skim 1 | . 1 Fabricators . | . . Repair Stations . | . . Recycling Units 1 | . 1 Tunnel 1 | . 1 Scanalyzers . | . . Garrison Access . | . . Data Cores Recovered . | . . Used . | . . Hacking Detections 4 | . 4 Full Trace Events 1 | . 1 Feedback Events 1 | . 1 Corruption 1 | . 1 Feedback Blocked . | . . Robot Schematics Acquired . | . . Robots Built . | . . Authchips . | . . Time . | . . Total Robot Build Rating . | . . Part Schematics Acquired 2 | . 2 Parts Built . | . . Authchips . | . . Time . | . . Total Part Build Rating . | . . Part Studies Acquired . | . . Parts Repaired . | . . Time . | . . Parts Recycled . | . . Recycled Matter . | . . Retrieved Matter . | . . Retrieved Components . | . . Parts Scanalyzed . | . . Part Schematics Acquired . | . . Parts Damaged . | . . Bothacking | -11 -10 ------------ Run | Yrd Mat Used RIF Installer . | . . Robots Hacked . | . . Non-combat . | . . Combat . | . . Robot Hacks Applied . | . . Relay Couplers Released . | . . Fabnet Peak Effective % . | . . Robots Rewired . | . . Allies Hacked . | . . Hacks Repelled . | . . Allies | -11 -10 -------- Run | Yrd Mat Total Allies . | . . Largest Group . | . . Highest-Rated Group . | . . Highest-Rated Ally . | . . Total Orders . | . . Ally Attacks . | . . Total Damage . | . . Kills . | . . Allies Corrupted . | . . Allies Melted . | . . Intel | -11 -10 ------- Run | Yrd Mat Active Infowar (turns) 477 | 24 453 Terrain 477 | 24 453 Robot Analysis Total . | . . Derelict Logs Recovered . | . . Drone Launches . | . . Drone Recoveries . | . . Exploration | -11 -10 ------------- Run | Yrd Mat Turns Passed 587 | 134 453 Spaces Moved 264 | 68 196 Core 2 | 2 . Treads 262 | 66 196 Legs . | . . Wheels . | . . Hover . | . . Flight . | . . Fastest Speed 50 | 50 160 Average Speed 167 | 156 170 Slowest Speed 240 | 160 240 Overloaded Moves . | . . Propulsion Burnouts . | . . Robots Hopped . | . . Potential Cave-ins . | . . Cave-ins Triggered . | . . Exploration Rate (%) 21 | 5 38 Regions Visited 1 Branch Regions . Pre-discovered Areas 1 | . 1 Known Exits Taken . | . . Unknown Exits Taken 1 | 1 . Scrap Searched . | . . Spaces Dug . | . . Terrain Destroyed 17 | . 17 Melee . | . . Projectile . | . . AOE 17 | . 17 Terrain Rammed . | . . Walls Destroyed . | . . Machines Disabled . | . . Actions | -11 -10 --------- Run | Yrd Mat Total 350 | 83 267 Wait 38 | . 38 Move 263 | 67 196 Hop . | . . Pick Up 7 | 2 5 Fast Attach 8 | 8 . Attach 1 | . 1 Detach . | . . Swap 1 | . 1 Drop 1 | 1 . Fire 31 | 5 26 Melee . | . . Ram . | . . Kick . | . . Crush . | . . Escape Stasis . | . . Rewire . | . . Trap . | . . Miscellaneous . | . . Route ------- -11/Scrapyard -10/Materials (discovered 1 exit: [*Mat]) History --------- Turn | Location | Event 7 | -11/Scrapyard | Discovered new exit (range 16) 135 | -11/Scrapyard | Entered Materials 307 | -10/Materials | Build established: Mutant 436 | -10/Materials | Discovered new exit (range 4) 588 | -10/Materials | Destroyed self via exploding Nuclear Reactor Last Messages --------------- 00508_ Acquired 4 matter. 00522_ Acquired Imp. Heat Sink. 00526_ Acquired Ion Engine. 00534_ Acquired Aluminum Leg. 00551_ W-16 Scout sends out distress signal. 00575_ R-06 Scavenger collects Particle Gun. 00578_ Assault Rifle destroyed. 00581_ R-06 Scavenger collects Ion Engine. 00583_ Acquired 10 matter. 00584_ Acquired 1 matter. 00585_ Chain reaction triggered in Lgt. Ion Engine. 00585_ Lgt. Treads destroyed. 00585_ Destroyed Lgt. Treads. 00588_ Nuclear Reactor explodes. 00588_ Destroyed Flight Unit. 00588_ S-10 Pest destroyed. 00588_ G-34 Mercenary destroyed. 00588_ Destroyed Lgt. Assault Rifle. 00588_ Destroyed Flight Unit. 00588_ Terminal disabled. Map ----- +----------------------------------------------------+ | | | | | | | ???????????????????????????##????????????????????? | | ?????????????????????????????????????????????????? | | ???????????????#?????????????????????????????????? | | ?????????????????????????????????????????????????? | | ????????????????#?#???#??????????????????????????? | | ?????????????????????????????????????????????????? | | ???????????????????????#?????????????????????????? | | ?????????????????????#????##?#???????????????????? | | ????????????????????##???##???#??????????????????? | | ?????????????????????#??????#????????????????????? | | ?????????????###########???????????#?????????????? | | ???#?????????# ## !!##??#????????#????????????? | | ????????#??#?# < #! !##????????#??????????????? | | ?????????#??## # #???#?##?????????????????? | | ?????????????# # #?????#?#????????????????? | | ??????????##?# a#####?#??????????????????? | | ?????#??#??#?# # #####????????????????? | | ???????? ????# ###???#???????????? | | ???????????#?######## ##????##????????? | | ????????????????????# #??#????????????? | | ???????????#????????# #???????????????? | | ???????"?????#??#???# ###?????????????? | | ????????????????#???# s @ ##??#??##???????? | | ???##+############### g%* #????#??????????? | | ?? w r = #?#?????????????? | | ?? #???????????????? | | ?? """ # #?#??#??????????? | | ?????+#### """ ##########???????????????? | | ?????????# """ ####?????????? ??????????? | | ?????????# T#?#?#?????#?????????????? | | ?????????# ###??#???????????????????? | | #???????## """ ##????#?#?#?#????????????? | | ????????# # """ "#??????#??#?????????????? | | ????????# # """ T#??##???????????????????? | | ????????# # "#?????#?????????????????? | | ???#????# # ##?????#?????????????????? | | ????????# # ** ######???????????????????? | | ???????####/### * ????????????????? | | ??????## + ???????????????? | | ???????# # ???????????????? | | ???????#""" # ########????????????????? | | ???????#""" # """ #??#????????????????????? | | ???????#""" # """ ##??????????????????????? | | ???????# # """ #???#??#????????????????? | | ???????######## #???#?#?????????????????? | | ?????#?#??????# #????#??????????????????? | | ??????????????# ##?##???????????????????? | +----------------------------------------------------+ Best States ------------- Heat Dissipation 25 Energy Generation 10 Energy Capacity 250 Matter Stores 300 Matter Capacity 300 Sight Range 16 Terrain Scan Range 16 Terrain Scan Density 10 Evasion (%) 40 Recoil Reduction 2 Item Schematics ----------------- Med. Storage Unit | -10/Materials | Hacked Lrg. Storage Unit | -10/Materials | Hacked Robot Schematics ------------------ None Fabricated ------------ Nothing Repaired ---------- Nothing Studied --------- None Alien Tech Used ----------------- None Achievements -------------- None Challenges ------------ None Game ------ Seed UltimateSwordInjector Manual? 0 Play Time 00:06:21 Cumulative 389.5 hours Start 2025.11.08 @ 18:12:38 End 2025.11.08 @ 18:19:50 Sessions 1 Manual Loads 0 Difficulty Rogue Special Mode None Game No. 165 Rogue 94 Adventurer 68 Explorer 3 Win Type - Total 33 Types 19/2/3/4/3/0/0/0/0/2 Lore% 78 Gallery% 76 Achievement% 53 Wizard Run 0 Options --------- Layout 0 ASCII 0 Keyboard 0 Movement Numpad Keybinds 0 Fullscreen 1 Font 24/Smallcaps Map View 76x50 Zoom Use 0% Tactical HUD 1 Map Filters NONE Filters NONE Steam 1 RUN: 749b6bd5-a42b-4aed-8574-ff8f3ff80474